bitfinex-derivatives/quotes_BNBF0:USTF0_20250302
["timestamp","ask_amount","ask_price","bid_price","bid_amount"]
[1740939092057,0.26617064,631.06,630.04,0.31744016]
[1740939094353,0.26620141,631.05,629.73,1.6565578]
[1740939094550,0.26620141,631.06,629.73,1.6565578]
[1740939094757,0.818,631.04,629.73,1.6565578]
[1740939094954,0.26620141,631.03,629.73,1.6565578]
[1740939095458,1.16,631.02,629.73,1.6565578]
[1740939095661,0.26620141,631.01,629.73,1.6565578]
[1740939095857,1.16,631.02,629.73,1.6565578]
[1740939096057,0.26620371,631.01,629.73,1.6565578]
[1740939097154,0.26620371,631.01,629.32,1.16683405]
[1740939097354,0.26620371,631.01,629.62,1.65678783]
[1740939097656,1.16,631.02,629.62,0.31765191]
[1740939097657,0.58316544,631.0,629.62,0.31765191]
[1740939097958,0.51020823,630.99,629.62,1.97440688]
[1740939098155,0.26620823,630.98,629.62,1.97440688]
[1740939099257,0.26620174,630.97,629.62,1.97440688]
[1740939099453,0.26620174,630.98,629.62,1.97440688]
[1740939099658,0.401,630.96,629.62,1.97440688]
[1740939099857,0.26620174,630.95,629.62,1.97440688]
[1740939100057,0.26620174,630.95,629.62,0.31765191]
[1740939100255,0.31698735,630.94,629.62,0.31765191]
[1740939100455,0.26629306,630.93,629.62,0.31765191]
[1740939100755,0.31698735,630.94,629.62,0.31765191]
[1740939100956,0.2662964,630.93,629.62,0.31765191]
[1740939102164,0.3169974,630.92,629.62,0.31765191]
[1740939102360,0.2662964,630.91,629.62,0.31765191]
[1740939103062,1.018,630.9,629.62,0.31765191]
[1740939103259,0.2662964,630.89,629.62,0.31765191]
[1740939103458,1.018,630.9,629.62,0.31765191]
[1740939104860,0.868,630.89,629.62,0.31765191]
[1740939105060,0.26624013,630.88,629.62,0.31765191]
[1740939105260,0.868,630.89,629.62,0.31765191]
[1740939105463,0.26623449,630.88,629.62,0.31765191]
[1740939108065,0.868,630.89,629.62,0.31765191]
[1740939108265,0.782,630.87,629.62,0.31765191]
[1740939112859,0.26616738,630.86,629.63,0.29148822]
[1740939113058,0.26616738,630.86,629.64,0.31764182]
[1740939113265,0.26616738,630.86,629.65,0.29148822]
[1740939113566,0.26616738,630.86,629.66,0.31763173]
[1740939113766,0.26616738,630.86,629.67,0.29148822]
[1740939113969,0.26616738,630.86,629.68,0.31762164]
[1740939114268,0.26616738,630.86,629.69,0.29148822]
[1740939114568,0.26616738,630.86,629.7,0.31761156]
[1740939116463,0.26616738,630.86,629.71,0.29150466]
[1740939116664,0.26616738,630.86,629.72,0.31760147]
[1740939117473,0.26616738,630.86,629.73,0.29145721]
[1740939117976,0.401,630.85,629.73,0.29145721]
[1740939118875,0.401,630.85,629.75,0.31758634]
[1740939119174,0.401,630.85,629.76,0.29145721]
[1740939119974,0.846,630.84,629.78,0.31757121]
[1740939120176,0.846,630.84,629.79,0.29145721]
[1740939120368,0.846,630.84,629.81,0.31755608]
[1740939120575,0.846,630.84,629.82,0.29145721]
[1740939120774,0.846,630.84,629.84,0.31754096]
[1740939120976,0.846,630.84,629.85,0.29145721]
[1740939121972,0.846,630.84,629.87,0.31752583]
[1740939122179,0.846,630.84,629.88,0.29145721]
[1740939123380,0.846,630.84,629.89,0.2912523]
[1740939123680,0.846,630.84,629.9,0.2912523]
[1740939123881,0.846,630.84,629.91,0.2912523]
[1740939124177,0.846,630.84,629.92,0.2912523]
[1740939124377,0.846,630.84,629.93,0.2912523]
[1740939124574,0.846,630.84,629.96,1.16683405]
[1740939124777,0.846,630.84,629.97,0.2912523]
[1740939126981,0.846,630.84,629.88,0.2912523]
[1740939127182,0.846,630.84,629.89,0.2912523]
[1740939127481,0.846,630.84,629.9,0.2912523]
[1740939127675,0.846,630.84,629.91,0.2912523]
[1740939127877,0.846,630.84,629.93,0.31749559]
[1740939128075,0.846,630.84,629.94,0.2912523]
[1740939128280,0.846,630.84,629.96,0.31748047]
[1740939128581,1.128,630.83,629.96,0.31748047]
[1740939128783,1.128,630.83,629.97,0.29120912]
[1740939129183,2.126,630.83,629.97,0.29120912]
[1740939131081,2.126,630.83,629.99,0.31746535]
[1740939131279,2.126,630.83,630.0,0.29120912]
[1740939132284,2.126,630.83,630.01,0.31745527]
[1740939132485,2.126,630.83,630.02,0.29120912]
[1740939133280,2.126,630.83,630.01,0.31745527]
[1740939133281,2.126,630.83,630.03,0.29128793]
[1740939133487,2.126,630.83,630.04,0.29128793]
[1740939133681,2.126,630.83,630.05,0.29128793]
[1740939133886,2.126,630.83,630.02,0.29128793]
[1740939134088,2.126,630.83,630.01,0.31745527]
[1740939134089,2.527,630.83,630.03,0.29128793]
[1740939134287,2.527,630.83,630.04,0.29128793]
[1740939134483,2.771,630.83,630.05,0.29128793]
[1740939134682,2.771,630.83,630.02,0.29128793]
[1740939134885,2.771,630.83,630.03,0.29128793]
[1740939135089,2.771,630.83,630.02,0.29128793]
[1740939135289,2.771,630.83,630.03,0.29128793]
[1740939135490,3.544,630.83,630.02,0.29128793]
[1740939136391,3.544,630.83,630.03,0.29128793]
[1740939136689,3.544,630.83,630.04,0.29128793]
[1740939136882,3.544,630.83,630.05,0.29128793]
[1740939137082,3.544,630.83,630.06,0.29128793]
[1740939137289,3.544,630.83,630.07,0.29128793]
[1740939137489,3.544,630.83,630.08,0.29128793]
[1740939137690,3.544,630.83,630.09,0.29128793]
[1740939137988,3.544,630.83,630.1,0.29128793]
[1740939138189,3.544,630.83,630.02,1.16683405]
[1740939138389,3.544,630.83,630.03,0.29114586]
[1740939138582,3.544,630.83,630.04,0.29114586]
[1740939138782,3.544,630.83,630.05,0.31743512]
[1740939138985,3.544,630.83,630.06,0.29114586]
[1740939139789,4.436,630.83,630.06,0.29114586]
[1740939141488,4.436,630.83,630.05,0.31743512]
[1740939141685,4.436,630.83,630.07,0.29118924]
[1740939141891,4.436,630.83,630.08,0.29118924]
[1740939142185,4.436,630.83,630.09,0.29118924]
[1740939142392,4.436,630.83,630.1,0.29118924]
[1740939142591,4.436,630.83,630.11,0.29118924]
[1740939142890,4.436,630.83,630.12,0.29118924]
[1740939143091,4.436,630.83,630.05,0.31743512]
[1740939143390,4.436,630.83,630.06,0.29116693]
[1740939143591,4.436,630.83,630.07,0.31742504]
[1740939146387,4.436,630.83,630.08,0.29117942]
[1740939147086,4.436,630.83,630.09,0.31741497]
[1740939147290,4.436,630.83,630.1,0.29117942]
[1740939147489,4.436,630.83,630.11,0.31740489]
[1740939147692,4.436,630.83,630.12,0.29117942]
[1740939147992,4.436,630.83,630.13,0.31739482]
[1740939148187,4.436,630.83,630.14,0.29117942]
[1740939148590,4.436,630.83,630.15,0.31738474]
[1740939148892,4.436,630.83,630.16,0.29117942]
[1740939149488,4.436,630.83,630.15,0.31738474]
[1740939149687,4.436,630.83,630.16,0.29117392]
[1740939150487,5.673,630.83,630.17,0.29117392]
[1740939150693,5.673,630.83,630.18,0.29117392]
[1740939150893,5.673,630.83,630.16,0.29117392]
[1740939151093,5.673,630.83,630.17,0.29117392]
[1740939151292,5.673,630.83,630.16,0.29117392]
[1740939151488,5.673,630.83,630.15,0.31738474]
[1740939151794,5.673,630.83,630.16,0.2911316]
[1740939152494,5.673,630.83,630.4,1.16683405]
[1740939152690,5.673,630.83,630.41,0.2911316]
[1740939152889,4.03,630.83,630.42,0.31724881]
[1740939153088,4.03,630.83,630.43,0.2911316]
[1740939153589,4.03,630.83,630.44,0.31723875]
[1740939157898,4.03,630.83,630.45,0.29118845]
[1740939158290,4.03,630.83,630.44,0.31723875]
[1740939159198,4.03,630.83,630.52,1.16683405]
[1740939161794,4.03,630.83,630.47,1.16683405]
[1740939162499,3.257,630.83,630.47,1.16683405]
[1740939164304,3.257,630.83,630.49,1.16683405]
[1740939164495,2.02,630.83,630.49,1.16683405]
[1740939164798,1.128,630.83,630.49,1.16683405]
[1740939165604,1.693,631.07,630.49,1.16683405]
[1740939167004,1.693,631.07,630.44,0.31723875]
[1740939168103,2.477,631.07,630.44,0.31723875]
[1740939174006,3.483,631.07,630.44,0.31723875]
[1740939175010,4.228,631.07,630.44,0.31723875]
[1740939176307,5.089,631.07,630.44,0.31723875]
[1740939178709,5.089,631.07,630.11,1.16683405]
[1740939179713,5.089,631.07,630.2,1.16683405]
[1740939180316,0.26604491,631.06,630.2,1.16683405]
[1740939180817,4.274,631.07,630.2,1.16683405]
[1740939181017,0.26603078,631.06,630.2,1.16683405]
[1740939181518,0.777,631.05,630.2,1.16683405]
[1740939181719,0.26603078,631.04,630.2,1.16683405]
[1740939181914,0.777,631.05,630.2,1.16683405]
[1740939182114,0.2660747,631.04,630.2,1.16683405]
[1740939182319,0.2660747,631.04,629.99,1.16683405]
[1740939182720,0.777,631.05,629.99,1.16683405]
[1740939182914,0.777,631.05,630.0,0.31746031]
[1740939183820,1.8,631.04,630.0,0.31746031]
[1740939184118,1.8,631.04,630.01,0.29133653]
[1740939184320,1.8,631.04,630.0,0.31746031]
[1740939184918,0.26606437,631.03,630.0,0.31746031]
[1740939185118,0.26606437,631.03,630.01,0.29139345]
[1740939185320,1.8,631.04,630.0,0.31746031]
[1740939187015,0.26608626,631.03,630.0,0.31746031]
[1740939187215,1.8,631.04,630.0,0.31746031]
[1740939188419,0.2661185,631.03,630.0,0.31746031]
[1740939189222,1.8,631.04,630.0,0.31746031]
[1740939189421,0.26614133,631.03,630.0,0.31746031]
[1740939191616,0.26614133,631.03,629.65,1.65656437]
[1740939191822,0.26614133,631.03,629.66,0.29152706]
[1740939192422,0.31694716,631.02,629.66,0.29152706]
[1740939192622,0.31694716,631.02,629.65,1.65656437]
[1740939192819,0.26620278,631.01,629.66,0.29152382]
[1740939193117,0.26620278,631.01,629.67,0.31762669]
[1740939193317,0.26620278,631.01,629.68,0.29152382]
[1740939193522,0.26620278,631.01,629.69,0.3176166]
[1740939193927,1.123,631.0,629.69,0.3176166]
[1740939194125,0.26620278,630.99,629.69,0.3176166]
[1740939194928,0.26622217,630.98,629.69,0.3176166]
[1740939195128,0.26622217,630.99,629.69,0.3176166]
[1740939195328,0.26622217,630.98,629.69,0.3176166]
[1740939195528,0.26622217,630.97,629.69,0.3176166]
[1740939195831,0.26622217,630.96,629.69,0.3176166]
[1740939196023,0.26618893,630.95,629.69,0.3176166]
[1740939196223,0.26618893,630.94,629.69,0.3176166]
[1740939196427,0.26618893,630.93,629.69,0.3176166]
[1740939196625,0.26618893,630.92,629.69,0.3176166]
[1740939196827,0.26618893,630.99,629.69,0.3176166]
[1740939197024,0.26618893,630.98,629.69,0.3176166]
[1740939197226,0.26618893,630.97,629.69,0.3176166]
[1740939197430,0.26618893,630.99,629.69,0.3176166]
[1740939197629,0.26618893,630.98,629.69,0.3176166]
[1740939197929,0.26618893,630.97,629.69,0.3176166]
[1740939198129,0.26618893,630.99,629.69,0.3176166]
[1740939198429,0.26618893,630.98,629.69,0.3176166]
[1740939198730,0.26618893,630.97,629.69,0.3176166]
[1740939199029,0.26618893,630.96,629.69,0.3176166]
[1740939199230,1.123,631.0,629.69,0.3176166]
[1740939199433,0.26618705,630.99,629.69,0.3176166]
[1740939202629,0.991,630.98,629.69,0.3176166]
[1740939202838,0.26618705,630.97,629.69,0.3176166]
[1740939205036,0.401,630.96,629.69,0.3176166]
[1740939206338,0.401,630.96,629.7,0.2914736]
[1740939206734,0.26613448,630.95,629.7,0.2914736]
[1740939206940,0.26613448,630.95,629.71,0.31760651]
[1740939207140,0.50913448,630.95,629.72,0.2914736]
[1740939207341,0.26613448,630.94,629.72,0.2914736]
[1740939207640,0.26613448,630.94,629.73,0.31759643]
[1740939208241,0.26613448,630.94,629.74,0.29146528]
[1740939208437,0.26613448,630.94,629.73,0.31759643]
[1740939208637,0.26613448,630.94,629.74,0.29148615]
[1740939208842,0.26613448,630.94,629.73,0.31759643]
[1740939209743,0.26617951,630.93,629.73,0.31759643]
[1740939209943,0.26617951,630.92,629.73,0.31759643]
[1740939210141,0.26617951,630.94,629.73,0.31759643]
[1740939210939,0.26617111,630.93,629.73,0.31759643]
[1740939211139,0.26617111,630.94,629.73,0.31759643]
[1740939211547,1.34517111,630.94,629.73,0.31759643]
[1740939211740,0.26617111,630.93,629.73,0.31759643]
[1740939213145,1.157,630.92,629.73,0.31759643]
[1740939213346,0.26617111,630.91,629.73,0.31759643]
[1740939213541,0.26617111,630.91,629.74,0.29146986]
[1740939213742,0.26617111,630.91,629.73,0.31759643]
[1740939213945,0.26617111,630.91,629.74,0.29147854]
[1740939214245,0.26617111,630.91,629.75,0.31758634]
[1740939214748,2.33,630.92,629.75,0.31758634]
[1740939214948,2.33,630.92,629.76,0.29144921]
[1740939216453,2.33,630.92,629.75,0.31758634]
[1740939217153,0.791,630.91,629.76,0.29145079]
[1740939217949,0.791,630.91,629.77,0.29141796]
[1740939218149,0.791,630.91,629.78,0.29141796]
[1740939218350,0.791,630.91,629.79,0.29141796]
[1740939218555,0.791,630.91,629.76,0.29141796]
[1740939218753,0.791,630.91,629.77,0.29141796]
[1740939218754,0.26607249,630.9,629.77,0.29141796]
[1740939218951,0.26607249,630.9,629.76,0.29141796]
[1740939219256,0.791,630.91,629.81,1.16683405]
[1740939219557,0.791,630.91,629.82,0.29141796]
[1740939220955,0.791,630.91,629.81,1.16683405]
[1740939221157,0.822,630.9,629.98,1.16683405]
[1740939223760,0.822,630.9,629.81,1.65636069]
[1740939224059,0.822,630.9,629.82,0.29139203]
[1740939224262,0.822,630.9,629.84,0.31754096]
[1740939224560,0.243,630.89,629.84,0.31754096]
[1740939226564,0.26615838,630.88,629.84,0.31754096]
[1740939227465,0.243,630.89,629.84,0.31754096]
[1740939228166,0.2661486,630.88,629.84,0.31754096]
[1740939228365,0.6671486,630.88,629.84,0.31754096]
[1740939228566,0.2661486,630.87,629.84,0.31754096]
[1740939230067,0.401,630.88,629.84,0.31754096]
[1740939230463,0.26622343,630.87,629.84,0.31754096]
[1740939233470,0.26622343,630.87,629.52,1.16683405]
[1740939233672,0.31703257,630.85,629.52,1.16683405]
[1740939233873,0.26622343,630.84,629.52,1.16683405]
[1740939234066,0.26622343,630.83,629.52,1.16683405]
[1740939234269,0.31705267,630.81,629.52,1.16683405]
[1740939234473,0.26622343,630.8,629.3,1.16683405]
[1740939234773,0.31706775,630.78,629.3,1.16683405]
[1740939235170,0.26622343,630.77,629.3,1.16683405]
[1740939235373,0.31708283,630.75,629.3,1.16683405]
[1740939235569,0.26622343,630.74,629.3,1.16683405]
[1740939235873,0.58331632,630.73,629.3,1.16683405]
[1740939236173,0.26622343,630.72,629.3,1.16683405]
[1740939236374,0.26622343,630.71,629.3,1.16683405]
[1740939236574,0.26622343,630.7,629.3,1.16683405]
[1740939236770,0.26622343,630.69,629.3,1.16683405]
[1740939236973,0.58334146,630.68,629.3,1.16683405]
[1740939237172,0.58334648,630.67,629.3,1.16683405]
[1740939237368,0.58335151,630.66,629.3,1.16683405]
[1740939237573,0.58335654,630.65,629.3,1.16683405]
[1740939237774,0.58355863,630.64,629.1,1.65782704]
[1740939238070,0.58356366,630.63,629.11,0.6096459]
[1740939238269,0.26642049,630.62,629.12,0.60964085]
[1740939238472,0.26642049,630.62,629.13,0.6096358]
[1740939238673,0.26642049,630.62,629.14,0.29173648]
[1740939238872,0.26642049,630.61,629.14,0.29173648]
[1740939239073,0.26642049,630.6,629.14,0.29173648]
[1740939239276,0.26642049,630.59,629.14,0.29173648]
[1740939239471,0.58358881,630.58,629.15,0.31788921]
[1740939239673,0.26642049,630.57,629.16,0.29173648]
[1740939239878,0.26642049,630.56,629.16,0.29173648]
[1740939240078,0.26642049,630.55,629.16,0.29173648]
[1740939240278,0.26642049,630.57,629.16,0.29173648]
[1740939240478,0.26642049,630.56,629.16,0.29173648]
[1740939240678,0.26642049,630.57,629.16,0.29173648]
[1740939240873,0.26642049,630.56,629.16,0.29173648]
[1740939241079,0.26642049,630.57,629.16,0.29173648]
[1740939241278,0.26642049,630.56,629.15,0.31788921]
[1740939241480,0.26642049,630.55,629.15,0.31788921]
[1740939241679,1.193,630.55,629.15,0.31788921]
[1740939241879,0.26642049,630.54,629.15,0.31788921]
[1740939242282,1.064,630.53,629.15,0.31788921]
[1740939242579,0.26642049,630.52,629.16,0.29177143]
[1740939243181,0.26642049,630.52,629.15,0.31788921]
[1740939243882,0.31720353,630.51,629.15,0.31788921]
[1740939244179,0.26642049,630.5,629.15,0.31788921]
[1740939245783,0.31721359,630.49,629.15,0.31788921]
[1740939246082,0.26642049,630.48,629.15,0.31788921]
[1740939248780,0.804,630.47,629.15,0.31788921]
[1740939249086,0.26642049,630.46,629.15,0.31788921]
[1740939249480,0.804,630.47,629.15,0.31788921]
[1740939249686,0.31722869,630.46,629.15,0.31788921]
[1740939250884,1.04856943,630.45,629.15,0.31788921]
[1740939251081,0.26656943,630.44,629.15,0.31788921]
[1740939251386,0.66756943,630.44,629.15,0.31788921]
[1740939251586,0.26656943,630.43,629.15,0.31788921]
[1740939251988,0.31725385,630.41,629.15,0.31788921]
[1740939252187,0.31725385,630.41,628.85,1.65851179]
[1740939252188,0.26656943,630.4,628.32,1.16683405]
[1740939252386,0.26656943,630.4,628.71,1.6589005]
[1740939252587,0.26656943,630.4,628.34,0.31829901]
[1740939252787,0.26656943,630.39,628.35,0.29196168]
[1740939252984,0.26656943,630.4,628.71,1.65900595]
[1740939253186,0.26656943,630.39,628.72,0.29196168]
[1740939253383,0.26656943,630.38,628.71,1.65900595]
[1740939253688,0.26656943,630.37,628.71,1.65900595]
[1740939253888,0.26656943,630.4,628.71,1.65900595]
[1740939254187,0.26656943,630.39,628.71,1.65900595]
[1740939254388,0.26656943,630.38,628.71,1.65900595]
[1740939254582,0.26656943,630.4,628.71,1.65900595]
[1740939254790,0.26656943,630.39,628.71,1.65900595]
[1740939254986,0.26656943,630.4,628.71,1.65900595]
[1740939255182,0.31725385,630.41,628.71,1.65900595]
[1740939255183,0.26656943,630.39,628.71,1.65900595]
[1740939255387,0.26656943,630.38,628.71,1.65900595]
[1740939255582,0.26656943,630.37,628.71,1.65900595]
[1740939255890,0.50956943,630.36,628.71,1.65900595]
[1740939256084,0.26656943,630.35,628.71,1.65900595]
[1740939256686,1.036,630.34,628.71,1.65900595]
[1740939256890,0.26656943,630.33,628.71,1.65900595]
[1740939257989,0.26656943,630.33,628.72,0.31810662]
[1740939258190,0.31730418,630.31,628.72,0.31810662]
[1740939258384,0.26656943,630.3,628.72,0.31810662]
[1740939258585,0.31731928,630.28,628.72,0.31810662]
[1740939258789,0.26656943,630.27,628.72,0.31810662]
[1740939263090,0.31732935,630.26,628.72,0.31810662]
[1740939263290,0.26656943,630.25,628.72,0.31810662]
[1740939263490,1.05356943,630.25,628.72,0.31810662]
[1740939263785,0.26656943,630.24,628.72,0.31810662]
[1740939264990,0.954,630.23,628.72,0.31810662]
[1740939265186,0.26656943,630.22,628.72,0.31810662]
[1740939265393,0.26670209,630.21,628.72,0.31810662]
[1740939265593,0.26670209,630.22,628.72,0.31810662]
[1740939265888,0.26670209,630.21,628.72,0.31810662]
[1740939266093,0.26670209,630.22,628.72,0.31810662]
[1740939267389,0.31735956,630.2,628.72,0.31810662]
[1740939267589,0.26670209,630.19,628.72,0.31810662]
[1740939269389,0.31737467,630.17,628.72,0.31810662]
[1740939269695,0.26670209,630.16,628.72,0.31810662]
[1740939269893,0.31738978,630.14,628.72,0.31810662]
[1740939270098,0.26670209,630.13,628.72,0.31810662]
[1740939270298,0.31739986,630.12,628.72,0.31810662]
[1740939270498,0.26670209,630.11,628.72,0.31810662]
[1740939271100,0.31741497,630.09,628.72,0.31810662]
[1740939271298,0.26672976,630.08,628.72,0.31810662]
[1740939271494,0.31742504,630.07,628.72,0.31810662]
[1740939271798,0.26672976,630.06,628.72,0.31810662]
[1740939272000,0.31743512,630.05,628.72,0.31810662]
[1740939272201,0.26672976,630.04,628.72,0.31810662]
[1740939273304,0.857,630.03,628.73,0.29200221]
[1740939273504,0.26672976,630.02,628.73,0.61010377]
[1740939273700,0.26672976,630.02,628.73,0.31810156]
[1740939274908,0.26672976,630.02,628.74,0.29193056]
[1740939275107,0.26672976,630.02,628.75,0.31809145]
[1740939275309,0.26672976,630.02,628.76,0.29193056]
[1740939275710,1.04,630.01,628.76,0.29193056]
[1740939275905,0.26672976,630.0,628.76,0.29193056]
[1740939276108,0.26672976,630.0,628.75,0.31809145]
[1740939279313,1.074,629.99,628.75,0.31809145]
[1740939279712,0.66766784,629.98,628.75,0.31809145]
[1740939279911,0.26666784,629.97,628.75,0.31809145]
[1740939281314,0.26670585,629.96,628.75,0.31809145]
[1740939281507,0.26670585,629.97,628.75,0.31809145]
[1740939281707,0.26670585,629.96,628.75,0.31809145]
[1740939282013,0.58419136,629.95,628.75,0.31809145]
[1740939282211,0.26670585,629.94,628.75,0.31809145]
[1740939282816,1.084,629.94,628.75,0.31809145]
[1740939283011,0.58422999,629.93,628.38,1.16683405]
[1740939283212,0.2667344,629.92,628.39,0.61035853]
[1740939283411,0.31750567,629.91,628.39,0.31827368]
[1740939283615,0.2667344,629.9,628.39,0.31827368]
[1740939283916,0.31751575,629.89,628.39,0.31827368]
[1740939284216,0.2667344,629.88,628.39,0.31827368]
[1740939284410,0.31752583,629.87,628.39,0.31827368]
[1740939284613,0.2667344,629.86,628.39,0.31827368]
[1740939287714,0.56052583,629.87,628.39,0.31827368]
[1740939287918,0.26675631,629.86,628.39,0.31827368]
[1740939288421,0.31753592,629.85,628.39,0.31827368]
[1740939288626,0.26675631,629.84,628.39,0.31827368]
[1740939288828,0.317546,629.83,628.39,0.31827368]
[1740939289128,0.26675631,629.82,628.39,0.31827368]
[1740939289326,0.31755608,629.81,628.39,0.31827368]
[1740939289525,0.26677217,629.8,628.39,0.31827368]
[1740939289726,0.31756617,629.79,628.39,0.31827368]
[1740939289929,0.26677217,629.78,628.39,0.31827368]
[1740939290127,0.31757625,629.77,628.39,0.31827368]
[1740939290322,0.26677217,629.76,628.39,0.31827368]
[1740939290726,0.26677217,629.76,628.4,0.29209222]
[1740939291026,0.26677217,629.76,628.41,0.31826355]
[1740939294431,0.833,629.75,628.42,0.29209368]
[1740939294734,0.26677217,629.74,628.42,0.29209368]
[1740939295030,0.26677217,629.74,628.41,0.31826355]
[1740939296531,1.282,629.73,628.41,0.31826355]
[1740939296724,0.26677217,629.72,628.41,0.31826355]
[1740939297432,0.797,629.71,628.41,0.31826355]
[1740939297828,0.26677217,629.7,628.41,0.31826355]
[1740939298834,0.50977217,629.7,628.41,0.31826355]
[1740939299033,0.26677217,629.69,628.41,0.31826355]
[1740939299432,0.31762164,629.68,628.41,0.31826355]
[1740939299628,0.26677217,629.67,628.41,0.31826355]
[1740939299933,0.31763173,629.66,628.41,0.31826355]
[1740939300235,0.26677217,629.65,628.41,0.31826355]
[1740939302035,0.401,629.64,628.41,0.31826355]
[1740939302236,0.26677217,629.63,628.41,0.31826355]
[1740939303635,0.26677217,629.63,628.42,0.29209818]
[1740939303835,1.571,629.64,628.43,0.2920948]
[1740939304032,1.571,629.64,628.41,0.31826355]
[1740939304033,0.26676634,629.63,628.44,0.2920948]
[1740939304231,0.26676634,629.63,628.42,0.2920948]
[1740939304831,0.26676634,629.63,628.41,0.31826355]
[1740939304832,1.571,629.64,628.41,0.31826355]
[1740939307740,0.26673799,629.63,628.41,0.31826355]
[1740939307934,0.898,629.63,628.41,0.31826355]
[1740939308136,0.26674322,629.62,628.41,0.31826355]
[1740939308439,0.898,629.63,628.41,0.31826355]
[1740939308741,0.26674286,629.62,628.41,0.31826355]
[1740939312741,1.06,629.61,628.41,0.31826355]
[1740939312943,0.26674286,629.6,628.41,0.31826355]
[1740939313639,1.06,629.61,628.41,0.31826355]
[1740939313839,0.26680819,629.6,628.41,0.31826355]
[1740939317745,1.549,629.59,628.41,0.31826355]
[1740939317944,0.26680819,629.58,628.41,0.31826355]
[1740939318141,1.06980819,629.58,628.41,0.31826355]
[1740939318344,0.26680819,629.57,628.41,0.31826355]
[1740939319647,1.21780819,629.57,628.41,0.31826355]
[1740939319945,0.26680819,629.56,628.41,0.31826355]
[1740939323649,0.26688658,629.55,628.41,0.31826355]
[1740939323845,0.26688658,629.54,628.41,0.31826355]
[1740939324042,0.26688658,629.53,628.41,0.31826355]
[1740939324243,0.951,629.57,628.41,0.31826355]
[1740939324244,0.26688658,629.56,628.41,0.31826355]
[1740939324443,0.26688658,629.55,628.41,0.31826355]
[1740939324643,0.26688658,629.56,628.41,0.31826355]
[1740939324849,0.26688658,629.55,628.41,0.31826355]
[1740939325049,0.26688658,629.56,628.41,0.31826355]
[1740939325254,0.951,629.57,628.41,0.31826355]
[1740939325545,0.26691392,629.56,628.41,0.31826355]
[1740939325942,0.26691392,629.56,628.11,1.16683405]
[1740939326342,0.26691392,629.56,628.0,1.66090626]
[1740939326546,0.26691392,629.56,628.01,0.31846626]
[1740939326751,1.074,629.55,628.01,0.31846626]
[1740939327252,0.66798199,629.54,628.01,0.31846626]
[1740939327449,0.26698199,629.53,628.01,0.31846626]
[1740939327644,0.26698199,629.52,628.01,0.31846626]
[1740939327850,0.26698199,629.51,628.01,0.31846626]
[1740939328050,0.26698199,629.5,628.01,0.31846626]
[1740939328252,0.26698199,629.49,628.01,0.31846626]
[1740939328551,0.401,629.54,628.01,0.31846626]
[1740939328552,0.26698199,629.48,628.01,0.31846626]
[1740939328751,0.26698199,629.53,628.01,0.31846626]
[1740939328946,0.26698199,629.52,628.01,0.31846626]
[1740939329152,0.26698199,629.53,628.01,0.31846626]
[1740939329952,0.242,629.52,628.01,0.31846626]
[1740939330254,1.099,629.52,628.01,0.31846626]
[1740939331955,0.2669886,629.51,628.01,0.31846626]
[1740939333656,0.26692366,629.5,628.01,0.31846626]
[1740939333855,0.26692366,629.51,628.02,0.29224751]
[1740939334151,0.26692366,629.5,628.01,0.31846626]
[1740939334353,0.26692366,629.51,628.02,0.29227382]
[1740939334551,0.26692366,629.5,628.02,0.29227382]
[1740939334755,0.26692366,629.49,628.02,0.29227382]
[1740939334957,0.26692366,629.48,628.02,0.29227382]
[1740939335152,1.099,629.52,628.01,0.31846626]
[1740939335358,0.26695704,629.51,628.02,0.29228816]
[1740939337357,0.26695704,629.51,628.01,0.31846626]
[1740939338556,0.26692916,629.5,628.01,0.31846626]
[1740939338755,0.26692916,629.49,628.01,0.31846626]
[1740939338958,0.26692916,629.48,628.01,0.31846626]
[1740939340257,0.865,629.47,628.01,0.31846626]
[1740939340463,0.26692916,629.46,628.01,0.31846626]
[1740939341864,0.26693171,629.45,628.01,0.31846626]
[1740939342164,0.26693171,629.44,628.01,0.31846626]
[1740939342365,0.26693171,629.46,628.01,0.31846626]
[1740939342566,0.865,629.47,628.01,0.31846626]
[1740939342567,0.26693171,629.45,628.01,0.31846626]
[1740939342864,0.26693171,629.44,628.01,0.31846626]
[1740939343064,0.26693171,629.46,628.01,0.31846626]
[1740939343265,0.26693171,629.45,628.01,0.31846626]
[1740939343767,0.26693171,629.44,628.02,0.29225647]
[1740939343967,0.26693171,629.43,628.02,0.29225647]
[1740939344268,0.26693171,629.43,628.01,0.31846626]
[1740939344269,0.26693171,629.42,628.01,0.31846626]